bitfinex/quotes_ETHUSD_20241013
["timestamp","ask_amount","ask_price","bid_price","bid_amount"]
[1728810074097,6.65566704,2467.5,2467.4,0.0064]
[1728810074518,4.90133208,2467.5,2467.4,0.0064]
[1728810075283,5.80691625,2467.5,2467.4,0.0064]
[1728810075488,10.32709496,2467.5,2467.4,0.0064]
[1728810075688,8.84346395,2467.5,2467.4,0.0064]
[1728810076133,7.0892277,2467.5,2467.4,0.0064]
[1728810076897,5.81622886,2467.5,2467.4,0.0064]
[1728810079326,5.81622886,2467.5,2467.1,0.12692696]
[1728810079327,4.0529,2467.4,2467.1,0.0064]
[1728810079523,4.0529,2467.4,2467.3,0.0064]
[1728810079723,5.18815999,2467.4,2467.3,0.0064]
[1728810083109,5.06515999,2467.4,2467.3,0.0064]
[1728810086104,7.51827927,2467.4,2467.3,0.0064]
[1728810086446,9.91444783,2467.4,2467.3,0.0064]
[1728810086935,8.90212784,2467.4,2467.3,0.0064]
[1728810087165,4.84928784,2467.4,2467.3,0.0064]
[1728810087320,8.90212784,2467.4,2467.3,0.0064]
[1728810088865,8.90201352,2467.4,2467.3,0.0064]
[1728810093275,8.76684507,2467.4,2467.3,0.0064]
[1728810093454,10.48950652,2467.4,2467.3,0.0064]
[1728810093651,4.0531,2467.3,2467.2,0.0064]
[1728810093851,7.07591675,2467.3,2467.2,0.0064]
[1728810094051,7.07592593,2467.3,2467.2,0.0064]
[1728810094514,7.499617,2467.3,2467.2,0.0064]
[1728810097285,5.80482275,2467.3,2467.2,0.0064]
[1728810097784,7.499617,2467.3,2467.2,0.0064]
[1728810098166,7.49941543,2467.3,2467.2,0.0064]
[1728810101674,5.80462118,2467.3,2467.2,0.0064]
[1728810102078,7.07549689,2467.3,2467.2,0.0064]
[1728810102975,4.05326,2467.2,2466.9,0.0064]
[1728810103205,4.05326,2467.2,2466.8,0.8315]
[1728810103206,2.59858864,2467.1,2466.8,0.8315]
[1728810103504,2.59858864,2467.1,2466.9,0.2315131]
[1728810105927,0.84722381,2467.2,2466.9,1.71514411]
[1728810106128,2.59836841,2467.2,2466.9,1.71514411]
[1728810106307,0.70045784,2467.1,2466.9,1.71514411]
[1728810106634,0.84722381,2467.1,2466.9,0.2315131]
[1728810106820,1.89792645,2467.1,2466.9,0.2315131]
[1728810106992,0.84722381,2467.1,2466.9,0.2315131]
[1728810107792,2.59838304,2467.1,2466.9,0.2315131]
[1728810108028,0.84722381,2467.1,2466.9,0.2315131]
[1728810108207,2.59828658,2467.1,2466.9,0.2315131]
[1728810108407,0.70042513,2467.0,2466.9,0.2315131]
[1728810109541,0.84722381,2467.1,2466.9,0.2315131]
[1728810110038,2.59819591,2467.1,2466.9,0.2315131]
[1728810110199,0.84722381,2467.1,2466.9,0.2315131]
[1728810110696,1.54761208,2467.1,2466.9,0.2315131]
[1728810111030,0.84722381,2467.1,2466.9,0.2315131]
[1728810111537,2.5981621,2467.1,2466.9,0.2315131]
[1728810111695,0.84722381,2467.1,2466.9,0.2315131]
[1728810111890,0.84722381,2467.2,2466.9,0.2315131]
[1728810112121,0.84722381,2467.1,2466.9,0.2315131]
[1728810112310,0.84722381,2467.2,2466.9,0.2315131]
[1728810112608,2.59811634,2467.2,2466.9,0.2315131]
[1728810112939,0.70036081,2467.1,2466.9,0.2315131]
[1728810113111,0.84722381,2467.2,2466.9,0.2315131]
[1728810113438,2.59811872,2467.2,2466.9,0.2315131]
[1728810113641,0.70035796,2467.1,2466.9,0.2315131]
[1728810113814,0.84722381,2467.2,2466.9,0.2315131]
[1728810114141,2.59812718,2467.2,2466.9,0.2315131]
[1728810114435,0.7003611,2467.1,2466.9,0.2315131]
[1728810114612,0.84722381,2467.2,2466.9,0.2315131]
[1728810114940,2.59815004,2467.2,2466.9,0.2315131]
[1728810115159,0.70037056,2467.1,2466.9,0.2315131]
[1728810115436,0.84722381,2467.2,2466.9,0.2315131]
[1728810115643,2.59858284,2467.1,2466.9,0.2315131]
[1728810115939,0.84722381,2467.1,2466.9,1.71514411]
[1728810116143,0.84722381,2467.2,2467.0,0.66004341]
[1728810116300,2.59860231,2467.2,2467.0,0.66004341]
[1728810116642,5.32393572,2467.3,2467.1,5.53685101]
[1728810116643,0.84722381,2467.3,2467.1,5.53685101]
[1728810116844,0.84722381,2467.4,2467.2,1.49003101]
[1728810117043,0.84722381,2467.4,2467.3,2.26073101]
[1728810117044,0.70089294,2467.4,2467.3,2.26073101]
[1728810117213,0.70090176,2467.4,2467.3,2.89212011]
[1728810117412,2.60004171,2467.4,2467.3,2.89212011]
[1728810117732,0.70090176,2467.4,2467.3,2.89212011]
[1728810117903,1.89902537,2467.5,2467.3,2.89212011]
[1728810118104,0.84722381,2467.6,2467.4,1.48363101]
[1728810118304,0.70122816,2467.5,2467.4,2.17814902]
[1728810118500,1.54845197,2467.5,2467.4,2.17814902]
[1728810118725,0.70122816,2467.5,2467.4,2.17814902]
[1728810119738,0.84722381,2467.6,2467.4,2.17814902]
[1728810119941,1.05213278,2467.6,2467.5,2.25433101]
[1728810120116,0.7014287,2467.6,2467.5,2.95449991]
[1728810120318,2.6007841,2467.6,2467.5,2.95449991]
[1728810120849,0.70135608,2467.6,2467.5,2.95449991]
[1728810122051,0.70135608,2467.6,2467.5,1.4708689]
[1728810122254,1.54857989,2467.6,2467.4,2.17814902]
[1728810122712,2.60062996,2467.6,2467.4,2.17814902]
[1728810122916,0.84722381,2467.6,2467.4,2.17814902]
[1728810123109,1.54815193,2467.6,2467.4,2.17814902]
[1728810123343,1.75232031,2467.6,2467.5,0.7001849]
[1728810123527,1.75218627,2467.6,2467.5,0.7001849]
[1728810123727,0.70092812,2467.6,2467.5,0.7001849]
[1728810124161,0.84722381,2467.7,2467.5,2.18381591]
[1728810124462,0.84722381,2467.7,2467.6,0.0064]
[1728810124463,1.54797537,2467.7,2467.6,0.0064]
[1728810124697,0.84722381,2467.7,2467.6,1.49003101]
[1728810124965,1.75189096,2467.7,2467.6,1.47085739]
[1728810125165,1.54798019,2467.8,2467.6,1.47085739]
[1728810125325,0.70075638,2467.7,2467.6,1.47085739]
[1728810125527,1.54798019,2467.8,2467.6,1.47085739]
[1728810125940,1.54798019,2467.8,2467.7,1.77907985]
[1728810126135,1.54798019,2467.8,2467.7,0.30184884]
[1728810126354,0.70075638,2467.8,2467.7,1.78547985]
[1728810126660,0.84722381,2467.9,2467.7,1.78547985]
[1728810127050,1.54771168,2467.9,2467.7,1.78547985]
[1728810127236,0.84722381,2468.0,2467.8,0.73023472]
[1728810127439,8.55721373,2468.0,2467.9,0.0064]
[1728810127638,4.05203,2467.9,2467.6,0.0064]
[1728810127971,2.59777964,2467.8,2467.4,6.30704101]
[1728810128173,0.84693719,2467.8,2467.4,6.30704101]
[1728810128385,2.59752484,2467.8,2467.4,6.30704101]
[1728810128537,0.84693719,2467.8,2467.4,6.30704101]
[1728810128736,0.84693719,2467.8,2467.5,0.6307041]
[1728810128737,2.59747302,2467.8,2467.5,0.6307041]
[1728810129358,4.89896719,2467.9,2467.5,0.6307041]
[1728810129564,2.59728319,2467.8,2467.5,0.6307041]
[1728810129770,0.84693719,2467.8,2467.5,0.6307041]
[1728810129974,2.59726242,2467.8,2467.5,0.6307041]
[1728810130169,0.84693719,2467.8,2467.5,0.6307041]
[1728810130374,2.59714452,2467.8,2467.5,0.6307041]
[1728810130534,4.89896719,2467.9,2467.4,6.30704101]
[1728810130741,1.7501595,2467.8,2467.4,6.30704101]
[1728810130935,4.89896719,2467.9,2467.4,6.30704101]
[1728810131136,0.70002433,2467.8,2467.4,2.25433101]
[1728810131333,2.59684556,2467.8,2467.4,0.7707]
[1728810131547,0.84693719,2467.8,2467.4,0.7707]
[1728810131889,1.74957089,2467.8,2467.4,0.7707]
[1728810132045,0.84693719,2467.8,2467.4,0.7707]
[1728810132245,2.59644053,2467.8,2467.4,0.7707]
[1728810132445,0.84693719,2467.8,2467.4,0.7707]
[1728810132674,2.59633192,2467.8,2467.4,0.7707]
[1728810132857,0.84693719,2467.8,2467.4,0.7707]
[1728810133153,2.59632941,2467.8,2467.4,1.8067381]
[1728810133490,4.89896719,2467.9,2467.4,1.8067381]
[1728810133645,2.59625284,2467.8,2467.4,1.8067381]
[1728810133847,4.89896719,2467.9,2467.4,1.8067381]
[1728810134183,0.699727,2467.8,2467.4,1.8067381]
[1728810134387,0.699727,2467.8,2467.5,0.73433491]
[1728810134539,0.699727,2467.8,2467.4,3.29036911]
[1728810134739,0.699727,2467.8,2467.4,1.8067381]
[1728810134976,6.64846815,2467.8,2467.4,0.7707]
[1728810135297,4.89922719,2467.8,2467.7,0.0064]
[1728810135452,6.64834557,2467.8,2467.7,0.0064]
[1728810137647,4.75193735,2467.8,2467.7,0.0064]
[1728810138662,4.7518695,2467.8,2467.7,0.0064]
[1728810138855,4.75186906,2467.8,2467.7,0.0064]
[1728810139181,0.69957906,2467.8,2467.7,0.0064]
[1728810141075,4.89896719,2467.9,2467.7,0.0064]
[1728810141882,0.69952964,2467.8,2467.7,0.0064]
[1728810142249,4.89896719,2467.9,2467.7,0.0064]
[1728810142960,0.84693719,2467.9,2467.7,0.0064]
[1728810143165,0.84693719,2468.0,2467.7,0.8126]
[1728810143394,2.59578946,2468.0,2467.9,0.0064]
[1728810143794,2.59578946,2468.0,2467.7,0.8126]
[1728810144114,0.84693719,2468.0,2467.7,1.0358231]
[1728810144306,2.59579284,2468.0,2467.7,1.0358231]
[1728810144486,0.84693719,2468.0,2467.9,0.0064]
[1728810144805,2.59580714,2468.0,2467.9,0.0064]
[1728810146876,1.74886995,2468.0,2467.9,0.0064]
[1728810147316,0.69954798,2468.0,2467.9,0.0064]
[1728810147611,0.69961315,2468.0,2467.9,0.0064]
[1728810147973,0.69960724,2468.0,2467.9,0.0064]
[1728810148283,0.84693719,2468.1,2467.9,0.0064]
[1728810148479,1.89632665,2468.1,2467.9,0.0064]
[1728810148681,0.84693719,2468.1,2467.9,0.0064]
[1728810148910,2.59598356,2468.1,2467.9,0.0064]
[1728810149214,0.84693719,2468.1,2467.9,0.0064]
[1728810149672,0.84693719,2468.1,2467.9,0.25898541]
[1728810149673,1.74904403,2468.1,2467.9,0.25898541]
[1728810149872,0.84693719,2468.1,2467.9,0.25898541]
[1728810150072,0.84693719,2468.2,2467.9,0.25898541]
[1728810150311,2.5959763,2468.2,2467.9,0.25898541]
[1728810150487,2.59603461,2468.1,2467.9,0.25898541]
[1728810150684,0.84693719,2468.1,2467.9,0.25898541]
[1728810151074,0.84693719,2468.2,2467.9,0.25898541]
[1728810151387,0.84693719,2468.1,2467.9,0.25898541]
[1728810151590,1.89644991,2468.1,2467.9,0.25898541]
[1728810151819,0.84693719,2468.1,2467.9,0.25898541]
[1728810152386,1.89643953,2468.1,2467.9,0.25898541]
[1728810152604,0.84693719,2468.1,2467.9,0.25898541]
[1728810156623,2.59680235,2468.0,2467.9,0.0064]
[1728810156782,0.84693719,2468.0,2467.9,0.0064]
[1728810156985,2.59680235,2468.1,2467.9,0.0064]
[1728810157182,0.69972083,2468.0,2467.9,0.0064]
[1728810157511,0.84693719,2468.0,2467.9,0.0064]
[1728810157890,1.89707984,2468.0,2467.9,0.0064]
[1728810158090,2.59718014,2468.0,2467.9,0.0064]
[1728810158795,1.54703749,2468.0,2467.9,0.0064]
[1728810159401,2.59718014,2468.0,2467.9,0.0064]
[1728810159598,1.54703749,2468.0,2467.9,0.0064]
[1728810160284,2.59718014,2468.0,2467.9,0.0064]
[1728810160488,1.75024295,2468.0,2467.9,0.0064]
[1728810161222,2.59765823,2468.0,2467.9,0.0064]
[1728810161395,1.75024295,2468.0,2467.9,0.0064]
[1728810161726,3.02064874,2468.0,2467.9,0.0064]
[1728810166813,3.02376764,2468.0,2467.9,0.0064]
[1728810171502,4.20738986,2468.0,2467.9,0.0064]
[1728810171826,5.60998138,2468.0,2467.9,0.0064]
[1728810174895,9.66196138,2468.0,2467.7,0.0064]
[1728810175100,1.27214766,2467.8,2467.7,0.0064]
[1728810175415,3.02534327,2467.8,2467.7,0.0064]
[1728810176496,4.85057347,2467.8,2467.4,3.0064]
[1728810176697,0.84812443,2467.6,2467.4,3.71233]
[1728810177009,0.84812443,2467.6,2467.5,0.12690752]
[1728810177338,2.60129449,2467.6,2467.5,0.12690752]
[1728810180596,2.60129449,2467.6,2467.5,1.61053853]
[1728810180971,0.84812443,2467.7,2467.5,3.63867206]
[1728810181120,1.90008881,2467.7,2467.6,0.0064]
[1728810181313,2.60143482,2467.7,2467.6,0.13329945]
[1728810181626,1.54947044,2467.7,2467.6,5.66945046]
[1728810181820,0.70134601,2467.7,2467.6,8.11935634]
[1728810183051,0.84812443,2467.8,2467.7,4.05235]
[1728810183230,2.60165645,2467.8,2467.7,5.97339791]
[1728810184697,2.60165645,2467.8,2467.7,5.66927244]
[1728810184820,2.60165645,2467.8,2467.7,7.16022623]
[1728810185151,2.60165645,2467.8,2467.7,5.67659522]
[1728810185459,2.60165645,2467.8,2467.7,7.16022623]
[1728810188333,2.60165645,2467.8,2467.7,7.16022568]
[1728810188747,3.30363407,2467.8,2467.7,6.85603198]
[1728810188948,2.60222126,2467.8,2467.7,7.160283]
[1728810190833,2.60222126,2467.8,2467.7,8.523683]
[1728810191033,0.70163873,2467.8,2467.7,8.523683]
[1728810191234,0.84812443,2467.9,2467.8,4.05219]
[1728810191435,2.60225771,2467.9,2467.8,7.96301021]
[1728810191674,2.60225771,2467.9,2467.8,10.96301021]
[1728810191834,0.70165331,2467.9,2467.8,10.96301021]
[1728810193251,0.84812443,2468.0,2467.9,3.0]
[1728810193456,2.60211791,2468.0,2467.9,8.96679291]
[1728810193668,2.60211791,2468.0,2467.9,11.33671193]
[1728810195537,2.60211791,2468.0,2467.9,11.33670037]
[1728810195789,1.54972182,2468.0,2467.9,11.33658138]
[1728810196010,0.70159739,2468.0,2467.9,11.33658138]
[1728810197585,0.84812443,2468.1,2468.0,4.05186]
[1728810197748,0.84812443,2468.2,2468.1,4.86509]
[1728810197951,0.84812443,2468.2,2468.1,6.78613236]
[1728810197952,2.60158448,2468.2,2468.1,6.78613236]
[1728810198293,0.70138402,2468.2,2468.1,6.78613236]
[1728810198661,1.27218665,2468.4,2468.1,6.78613236]
[1728810198662,0.84812443,2468.4,2468.2,4.05153]
[1728810198864,0.84812443,2468.4,2468.3,2.29550757]
[1728810199063,2.60131018,2468.4,2468.3,2.29550757]
[1728810199290,2.60131018,2468.4,2468.3,2.16862825]
[1728810199450,2.60131018,2468.4,2468.3,2.29548511]
[1728810199651,0.70127481,2468.4,2468.3,2.29548511]
[1728810200582,0.70127481,2468.4,2468.3,6.34685511]
[1728810200961,0.84812443,2468.5,2468.3,6.34685511]
[1728810201290,1.54902491,2468.5,2468.4,1.03982351]
[1728810201462,2.60037428,2468.5,2468.4,1.03982351]
[1728810201789,2.60014941,2468.5,2468.4,1.03982351]
[1728810201958,1.89924893,2468.5,2468.4,1.03982351]
[1728810202149,2.60014941,2468.5,2468.4,1.03982351]
[1728810202350,1.89924893,2468.5,2468.4,1.03982351]
[1728810202550,2.60014941,2468.5,2468.4,1.03982351]
[1728810202762,0.70090048,2468.5,2468.4,1.03982351]
[1728810202983,1.54902491,2468.6,2468.4,1.03982351]
[1728810203174,1.54902491,2468.6,2468.5,0.25298545]
[1728810203378,2.59990919,2468.6,2468.5,0.25938545]
[1728810204265,1.75178476,2468.6,2468.5,0.25938545]
[1728810204662,1.54794349,2468.6,2468.5,0.25938545]
[1728810204866,2.59882777,2468.6,2468.5,0.25938545]
[1728810206266,2.59882777,2468.6,2468.5,0.0064]
[1728810207364,2.59761598,2468.6,2468.5,0.0064]
[1728810212084,2.59699676,2468.6,2468.5,0.0064]
[1728810214313,0.6999815,2468.6,2468.5,0.0064]
[1728810214820,0.84704301,2468.6,2468.5,0.0064]
[1728810214973,1.89685703,2468.6,2468.5,0.0064]
[1728810215181,1.74979552,2468.6,2468.5,0.0064]
[1728810215388,0.6999815,2468.6,2468.5,0.0064]
[1728810215918,0.6999815,2468.6,2468.5,0.7566]
[1728810216077,0.84704301,2468.7,2468.5,0.7566]
[1728810216278,0.84704301,2468.7,2468.6,0.0064]
[1728810216481,1.89682401,2468.7,2468.6,0.0064]
[1728810217117,1.7497625,2468.7,2468.6,0.0064]
[1728810217275,0.6999815,2468.7,2468.6,0.0064]
[1728810217472,0.84704301,2468.8,2468.6,0.0064]
[1728810217689,2.59669236,2468.8,2468.6,0.0064]
[1728810217917,0.84704301,2468.8,2468.6,0.0064]
[1728810218213,2.59678474,2468.8,2468.6,0.0064]
[1728810218413,0.84704301,2468.8,2468.6,0.0064]
[1728810218626,0.69988819,2468.8,2468.6,0.0064]
[1728810218811,5.64962301,2468.9,2468.6,0.0064]
[1728810219015,0.69985402,2468.8,2468.6,0.0064]
[1728810219825,1.54689703,2468.8,2468.6,0.0064]
[1728810220205,5.64962301,2468.9,2468.6,0.0064]
[1728810220428,0.69985734,2468.8,2468.6,0.0064]
[1728810220630,2.59667743,2468.8,2468.6,0.0064]
[1728810220953,5.64962301,2468.9,2468.6,0.0064]
[1728810221097,0.69983283,2468.8,2468.6,0.0064]
[1728810222392,2.59671305,2468.8,2468.6,0.0064]
[1728810222588,0.84704301,2468.8,2468.6,0.0064]
[1728810222792,2.5966992,2468.8,2468.6,0.0064]
[1728810223010,0.84704301,2468.8,2468.6,0.0064]
[1728810223695,1.54690564,2468.8,2468.6,0.0064]
[1728810223931,0.84704301,2468.8,2468.6,0.0064]
[1728810224433,2.5970995,2468.8,2468.6,0.0064]
[1728810224637,0.84704301,2468.8,2468.6,0.0064]
[1728810224797,1.54710995,2468.8,2468.6,0.0064]
[1728810224998,0.84704301,2468.8,2468.6,0.0064]
[1728810225200,2.59734297,2468.8,2468.6,0.0064]
[1728810225391,0.84704301,2468.8,2468.6,0.0064]
[1728810225596,2.59763492,2468.8,2468.6,0.0064]
[1728810225843,0.70023845,2468.7,2468.6,0.0064]
[1728810226043,1.54728146,2468.8,2468.6,0.0064]
[1728810226257,0.70029045,2468.7,2468.6,0.0064]
[1728810226607,1.54733346,2468.8,2468.6,0.0064]
[1728810226815,0.70029045,2468.7,2468.6,0.0064]
[1728810227019,1.54733346,2468.8,2468.6,0.0064]
[1728810227225,0.70029045,2468.7,2468.6,0.0064]
[1728810227445,1.54733346,2468.8,2468.6,0.0064]
[1728810228307,1.54733346,2468.8,2468.6,6.17001111]
[1728810228513,0.84704301,2468.9,2468.7,4.05711]
[1728810228762,0.84704301,2468.9,2468.8,0.0064]
[1728810228936,2.59807274,2468.9,2468.8,0.0064]
[1728810229453,1.89766085,2468.9,2468.8,0.0064]
[1728810231049,1.89801583,2468.9,2468.8,0.0064]
[1728810233125,2.59866437,2468.9,2468.8,0.0064]
[1728810235655,1.7526307,2468.9,2468.8,0.0064]
[1728810235811,2.60046953,2468.9,2468.8,0.0064]
[1728810236523,3.02481735,2468.9,2468.8,0.0064]
[1728810240354,3.02573965,2468.9,2468.8,0.0064]
[1728810243614,1.75420535,2468.9,2468.8,0.0064]
[1728810243813,3.4489996,2468.9,2468.8,0.0064]
[1728810245316,4.85236388,2468.9,2468.8,0.0064]
[1728810245845,3.15756963,2468.9,2468.8,0.0064]
[1728810246246,4.8547565,2468.9,2468.8,0.0064]
[1728810248260,3.45139802,2468.9,2468.8,0.0064]
[1728810248559,4.8547623,2468.9,2468.8,0.0064]
[1728810253041,3.45158207,2468.9,2468.8,0.0064]
[1728810253335,4.85494635,2468.9,2468.8,0.0064]
[1728810253939,3.45158207,2468.9,2468.8,0.0064]
[1728810254143,4.85494635,2468.9,2468.8,0.0064]
[1728810254425,3.45158207,2468.9,2468.8,0.0064]
[1728810254630,3.45199316,2468.9,2468.8,0.0064]
[1728810254935,4.85535744,2468.9,2468.8,0.0064]
[1728810255825,3.15775948,2468.9,2468.8,0.0064]
[1728810256562,1.7543952,2468.9,2468.8,0.0064]
[1728810257389,3.02785419,2468.9,2468.8,9.29548101]
[1728810257698,0.84899621,2469.1,2468.8,5.95148172]
[1728810257999,1.90219851,2469.1,2469.0,6.29515101]
[1728810258292,0.70214271,2469.1,2469.0,7.77584918]
[1728810258444,0.70159732,2469.1,2469.0,7.90268079]
[1728810258878,0.84899621,2469.2,2469.0,7.90268079]
[1728810259083,0.84899621,2469.3,2469.2,4.04989]
[1728810259347,2.60278044,2469.3,2469.2,1.61046262]
[1728810259548,2.60278044,2469.3,2469.2,0.13323161]
[1728810259749,2.60278044,2469.3,2469.2,0.0064]
[1728810264445,1.90126675,2469.3,2469.2,0.0064]
[1728810265470,1.75378423,2469.3,2469.2,0.0064]
[1728810265787,0.70151369,2469.3,2469.2,0.0064]
[1728810265995,1.5505099,2469.4,2469.2,0.0064]
[1728810266179,0.70151369,2469.3,2469.2,0.0064]
[1728810266947,1.5505099,2469.4,2469.2,0.0064]
[1728810267254,0.70151369,2469.3,2469.2,0.0064]
[1728810267588,1.5505099,2469.4,2469.2,0.0064]
[1728810270887,1.60039621,2469.5,2469.2,0.0064]
[1728810271094,0.69986775,2469.4,2469.2,0.0064]
[1728810272100,1.60039621,2469.5,2469.2,0.0064]
[1728810272259,0.69939297,2469.4,2469.2,0.0064]
[1728810274596,0.84899621,2469.5,2469.2,2.82451911]
[1728810274898,0.84899621,2469.5,2469.4,0.0064]
[1728810275097,1.89810199,2469.5,2469.4,0.0064]
[1728810275468,0.69939451,2469.5,2469.4,0.0064]
[1728810276802,1.54839072,2469.6,2469.4,0.0064]
[1728810278370,1.54839072,2469.6,2469.4,0.69381791]
[1728810281376,0.84899621,2469.6,2469.4,0.69381791]
[1728810281577,1.54816028,2469.6,2469.4,0.69381791]
[1728810281890,0.84899621,2469.6,2469.4,0.69381791]
[1728810282086,1.54815823,2469.6,2469.4,0.69381791]
[1728810282403,0.84899621,2469.6,2469.4,0.69381791]
[1728810282599,1.54814299,2469.6,2469.4,0.69381791]
[1728810282906,0.84899621,2469.6,2469.4,0.69381791]
[1728810283410,2.59681256,2469.6,2469.4,0.69381791]
[1728810283617,0.84899621,2469.6,2469.4,0.0064]
[1728810283777,1.54814547,2469.6,2469.4,0.0064]
[1728810283977,0.84899621,2469.6,2469.4,0.0064]
[1728810284169,2.59686803,2469.6,2469.4,0.0064]
[1728810284375,0.84899621,2469.6,2469.4,0.0064]
[1728810284568,1.8976942,2469.6,2469.4,0.0064]
[1728810284773,0.84899621,2469.6,2469.4,0.0064]
[1728810285008,2.59682574,2469.6,2469.4,0.0064]
[1728810285215,0.84899621,2469.6,2469.4,0.0064]
[1728810285374,1.54812769,2469.6,2469.4,0.0064]
[1728810285718,0.84899621,2469.6,2469.4,0.0064]
[1728810286313,2.59684786,2469.6,2469.4,0.0064]
[1728810286515,0.84899621,2469.6,2469.4,0.0064]
[1728810287074,2.59684794,2469.6,2469.4,0.0064]
[1728810287275,0.84899621,2469.6,2469.4,4.05593]
[1728810287480,0.84899621,2469.6,2469.5,6.49195311]
[1728810287481,2.59683701,2469.6,2469.5,6.49195311]
[1728810287682,1.7478476,2469.6,2469.5,5.0083221]
[1728810287887,0.69913133,2469.6,2469.5,5.0083221]
[1728810288117,0.69913133,2469.6,2469.5,0.9589221]
[1728810288874,1.54812754,2469.7,2469.5,0.9589221]
[1728810289076,0.69913133,2469.6,2469.5,0.9589221]
[1728810289722,1.54812754,2469.7,2469.5,0.9589221]
[1728810290019,0.84899621,2469.7,2469.5,0.9589221]
[1728810290821,2.597038,2469.7,2469.5,0.9589221]
[1728810290977,0.69922812,2469.6,2469.5,0.9589221]
[1728810291681,1.54822433,2469.7,2469.5,0.9589221]
[1728810292013,0.69922812,2469.6,2469.5,0.9589221]
[1728810292208,1.54822433,2469.7,2469.5,0.9589221]
[1728810293113,2.30722433,2469.7,2469.3,5.53322101]
[1728810293418,0.69922812,2469.6,2469.3,5.53322101]
[1728810294292,1.60799621,2469.7,2469.3,5.53322101]
[1728810294613,2.59785954,2469.6,2469.3,5.53322101]
[1728810294810,0.84899621,2469.6,2469.3,5.53322101]
[1728810294994,1.60799621,2469.7,2469.3,5.53322101]
[1728810295189,0.6996651,2469.6,2469.3,5.09793969]
[1728810295421,0.84899621,2469.6,2469.3,6.5815707]
[1728810295718,2.59856601,2469.6,2469.3,6.5815707]
[1728810295921,0.84899621,2469.6,2469.3,6.5815707]
[1728810296106,1.54883722,2469.6,2469.3,6.5815707]
[1728810296301,0.84899621,2469.6,2469.3,6.5815707]
[1728810296503,2.59872048,2469.6,2469.3,6.5815707]
[1728810296690,0.84899621,2469.6,2469.3,6.5815707]
[1728810297356,1.54888042,2469.6,2469.3,6.5815707]
[1728810297524,0.69988421,2469.5,2469.3,6.5815707]
[1728810297678,0.84899621,2469.6,2469.3,6.5815707]
[1728810298088,2.59893973,2469.6,2469.3,6.5815707]
[1728810298316,0.69997676,2469.5,2469.3,6.5815707]
[1728810298516,0.84899621,2469.6,2469.3,6.5815707]
[1728810298743,1.54909826,2469.6,2469.3,5.09793969]
[1728810299282,1.05036082,2469.5,2469.3,5.09793969]
[1728810299617,1.05036082,2469.5,2469.3,4.04959]
[1728810299618,1.54909826,2469.5,2469.3,4.04959]
[1728810300138,0.70022225,2469.4,2469.3,4.04959]
[1728810300280,0.84899621,2469.5,2469.3,4.04959]
[1728810300281,1.54921846,2469.5,2469.3,4.04959]
[1728810300487,0.70022225,2469.4,2469.3,4.04959]
[1728810300687,1.54921846,2469.5,2469.3,4.17639746]
[1728810300903,0.70022225,2469.4,2469.3,4.04959]
[1728810301141,0.84899621,2469.5,2469.3,4.18279742]
[1728810301311,0.70041813,2469.4,2469.3,4.18279742]
[1728810301506,2.60035049,2469.4,2469.3,4.18279906]
[1728810303093,2.60035049,2469.4,2469.3,4.05599]
[1728810303308,2.60035049,2469.4,2469.3,5.21910682]
[1728810303504,2.60035049,2469.4,2469.3,5.0922991]
[1728810303505,2.60219479,2469.4,2469.3,5.0922991]
[1728810303826,2.60219479,2469.4,2469.3,5.21910676]
[1728810304495,1.75319858,2469.4,2469.3,5.21910676]
[1728810304713,2.60133802,2469.4,2469.3,5.21910676]
[1728810304956,1.75319858,2469.4,2469.3,5.21910676]
[1728810309675,1.75319858,2469.4,2469.3,6.70273777]
[1728810310047,2.60174088,2469.4,2469.3,6.70273777]
[1728810310655,3.02665757,2469.4,2469.3,6.57593011]
[1728810310976,3.02665757,2469.4,2469.3,5.21910571]
[1728810311271,1.75319858,2469.4,2469.3,5.21910571]
[1728810312697,3.02665757,2469.4,2469.3,4.18279661]
[1728810312994,3.02775926,2469.4,2469.3,4.18279661]
[1728810314359,3.02775926,2469.4,2469.3,4.18279859]
[1728810315067,3.02775926,2469.4,2469.3,4.3096081]
[1728810315462,3.02775926,2469.4,2469.3,4.18279951]
[1728810317565,3.02832902,2469.4,2469.3,4.18279951]
[1728810318183,3.02832902,2469.4,2469.3,4.18280002]
[1728810319000,3.02832902,2469.4,2469.3,4.48698873]
[1728810319295,3.02849857,2469.4,2469.3,4.48698873]
[1728810322087,3.02849857,2469.4,2469.3,4.48702497]
[1728810322325,3.02858581,2469.4,2469.3,4.48702497]
[1728810325836,3.02858581,2469.4,2469.3,4.36021514]
[1728810326010,3.02858581,2469.4,2469.3,4.18279985]
[1728810326409,3.02858581,2469.4,2469.3,4.48703908]
[1728810327346,3.0286835,2469.4,2469.3,4.48703908]
[1728810331956,3.13651604,2469.4,2469.3,4.48703908]
[1728810333567,3.13651604,2469.4,2469.3,0.43744908]
[1728810333723,5.07966895,2469.4,2469.3,0.43744908]
[1728810334070,6.90846168,2469.4,2469.3,0.13320985]
[1728810334241,6.21274818,2469.4,2469.3,0.13320985]
[1728810335026,5.78754609,2469.4,2469.3,0.13320985]
[1728810335455,4.09002767,2469.4,2469.3,0.13320985]
[1728810335625,5.78737095,2469.4,2469.3,0.13320985]
[1728810335974,4.09002767,2469.4,2469.3,0.13320985]
[1728810336652,5.7872186,2469.4,2469.3,0.13320985]
[1728810337051,4.9642186,2469.4,2469.3,0.13320985]
[1728810337268,3.26702767,2469.4,2469.3,0.13320985]
[1728810337425,3.26702767,2469.4,2469.3,0.0064]
[1728810337827,3.26647916,2469.4,2469.3,0.1332159]
[1728810338027,4.96367009,2469.4,2469.3,0.1332159]
[1728810339850,3.26647916,2469.4,2469.3,0.1332159]
[1728810340070,3.2664334,2469.4,2469.3,0.1332159]
[1728810341290,3.26542454,2469.4,2469.3,0.13321756]
[1728810341970,4.96261547,2469.4,2469.3,0.13321756]
[1728810342175,3.26542454,2469.4,2469.3,0.13321756]
[1728810342581,3.13496103,2469.4,2469.3,0.13321756]
[1728810342749,1.86204819,2469.4,2469.3,0.13321756]
[1728810342985,3.26541821,2469.4,2469.3,0.13321756]
[1728810344182,3.13497882,2469.4,2469.3,0.13321756]
[1728810345183,3.13497882,2469.4,2469.3,0.0064]
[1728810345339,3.13497882,2469.4,2469.3,0.13321657]
[1728810345675,3.13497882,2469.4,2469.3,0.43737602]
[1728810345882,1.38076317,2469.4,2469.3,0.13321657]
[1728810346053,3.13502094,2469.4,2469.3,2.56125934]
[1728810346235,3.13502094,2469.4,2469.3,2.86541022]
[1728810346649,3.13502094,2469.4,2469.3,2.73859291]
[1728810346880,3.13502094,2469.4,2469.3,2.86540315]
[1728810347477,3.13502094,2469.4,2469.3,6.91513315]
[1728810350690,3.13454204,2469.4,2469.3,6.91513315]
[1728810353069,3.13454204,2469.4,2469.3,6.61098301]